Cogmind - Beta 14 @@@ ROGUE MODE // 2024.08.28 @ 20:01:16 Player: Crackrock_Steady Result: Destroyed by as-03779 with Assembled Blade Performance ------------- Evolutions (0) 0 Regions Visited (2) 400 Robots Destroyed (4) 20 Value Destroyed (63) 63 Prototype IDs (0) 0 Alien Tech Used (0) 0 Bonus (0) 0 TOTAL SCORE: 483 Bonus ------- None Cogmind --------- Core Integrity 0/250 Matter 300/300 Energy 100/100 System Corruption 1% Temperature Cool (0) Movement Core (100) Ox1 Location -10/Mines Parts ------- > --- POWER (1) -------- (None) > --- PROPULSION (2) --- (None) > --- UTILITY (2) ------ Small Storage Unit > --- WEAPON (2) ------- (None) > --- INVENTORY (8) ---- Ion Engine Signal Interpreter Signal Interpreter EM Pulse Gun Light Assault Rifle Peak State ------------ > --- POWER ------------ Light Ion Engine > --- PROPULSION ------- Light Treads Light Treads > --- UTILITY ---------- Small Storage Unit Seismic Detector > --- WEAPON ----------- Assault Rifle Light Assault Rifle > --- INVENTORY -------- EM Pulse Gun [Rating: 7] Favorites ----------- Power Light Ion Engine Engine Light Ion Engine Propulsion Light Treads Treads Light Treads Utility Small Storage Unit Device Seismic Detector Storage Small Storage Unit Weapon Light Assault Rifle Ballistic Gun Light Assault Rifle Build | -11 -10 -10 ------- Run | Yrd Mat Min Slots Evolved . | . . . Power . | . . . Propulsion . | . . . Utility . | . . . Weapon . | . . . Parts Attached 7 | 7 . . Power 1 | 1 . . Engine 1 | 1 . . Core . | . . . Reactor . | . . . Propulsion 2 | 2 . . Treads 2 | 2 . . Leg . | . . . Wheel . | . . . Hover . | . . . Flight . | . . . Utility 2 | 2 . . Device 1 | 1 . . Storage 1 | 1 . . Processor . | . . . Hackware . | . . . Protection . | . . . Artifact . | . . . Weapon 2 | 2 . . Energy Gun . | . . . Energy Cannon . | . . . Ballistic Gun 2 | 2 . . Ballistic Cannon . | . . . Launcher . | . . . Special Weapon . | . . . Impact Weapon . | . . . Slashing Weapon . | . . . Piercing Weapon . | . . . Special Melee Weapon . | . . . Unidentified Prototypes . | . . . Parts Lost 6 | . . 6 Power 1 | . . 1 Propulsion 2 | . . 2 Utility 1 | . . 1 Weapon 2 | . . 2 Highest Loss Streak 5 | . . 5 To Critical Strikes . | . . . Average Slot Usage (%) 93 | . 100 82 Engine 13 | . 14 12 Treads 27 | . 28 27 Device 9 | . 14 1 Storage 14 | . 14 14 Ballistic Gun 27 | . 28 26 Peak Build Rating 7 | 7 7 7 Average Rating 6 | 4 7 5 On Entrance 4 | . 7 7 Naked Turns . | . . . Heaviest Build 12 | 12 12 12 Greatest Support 40 | 40 40 40 Greatest Overweight (x) 1 | . . 1 Average Overweight (x) . | . . . Largest Inventory Capacity 8 | 8 8 8 Average Capacity 7 | 6 8 8 Most Carried 5 | 5 5 5 Average Carried 3 | 2 1 5 Final Capacity 8 | 8 8 8 Final Carried 5 | 1 5 5 Class Distribution -------------------- 100% | Mutant Dominant Class ---------------- Mutant | -10/Materials Mutant | -10/Mines Resources | -11 -10 -10 ----------- Run | Yrd Mat Min Matter Collected 345 | 223 46 76 Remotely . | . . . Salvage Created 145 | 79 46 20 Parts 7 | 6 1 . Haulers Intercepted . | . . . Recyclers Shooed . | . . . Parts Field Recycled . | . . . Retrieved Matter . | . . . Parts Self-Destructed . | . . . Prevented . | . . . Kills | -11 -10 -10 ------- Run | Yrd Mat Min Combat Hostiles Destroyed 3 | . 1 2 Guns 3 | . 1 2 Classes Destroyed 5 | 2 2 1 Tunneler 1 | 1 . . Recycler 1 | 1 . . Operator 1 | . 1 . Grunt 1 | . 1 . Assembled 2 | . . 2 Best Kill Streak 2 | 1 2 1 Combat Bots Only 1 | . 1 1 Max Kills in Single Turn 1 | 1 1 1 Gunslinging . | . . . Exploded . | . . . Melee . | . . . Uniques/NPCs Destroyed . | . . . Combat | -11 -10 -10 -------- Run | Yrd Mat Min Hostile Shots Fired 70 | . . 70 Missed 23 | . . 23 Damage Taken 873 | . . 873 Core 266 | . . 266 Absorbed by Shields . | . . . Core Remaining (%) 100 | 100 . . Volleys Fired 22 | 1 9 12 Largest 2 | 2 2 2 Hottest 40 | 40 40 40 Shots Fired 44 | 2 18 24 Gun 44 | 2 18 24 Cannon . | . . . Launcher . | . . . Special . | . . . Kinetic 44 | 2 18 24 Thermal . | . . . Explosive . | . . . Electromagnetic . | . . . Robot Hit Streak 4 | 1 4 3 Robot Miss Streak 6 | . 3 6 Penetration Max . | . . . Secondary Targets . | . . . Shots Hit Robots 19 | 1 9 9 Core Hits 10 | 2 3 5 Critical Kills . | . . . Critical Parts Destroyed . | . . . Critical Strikes . | . . . Melee Attacks . | . . . Impact . | . . . Slashing . | . . . Piercing . | . . . Sneak Attacks . | . . . Combat Hostiles . | . . . Follow-up Attacks . | . . . Damage Inflicted 207 | 13 100 94 Guns 205 | 11 100 94 Cannons . | . . . Explosions . | . . . Melee . | . . . Ramming 2 | 2 . . Kinetic 205 | 11 100 94 Thermal . | . . . Explosive . | . . . Electromagnetic . | . . . Impact . | . . . Slashing . | . . . Piercing . | . . . Highest Corruption 1 | . . 1 Average Corruption 1 | . . 1 Corruption Purged . | . . . Corruption Blocked . | . . . Overload Shots . | . . . Overflow Damage . | . . . Projectiles . | . . . Explosions . | . . . Melee . | . . . Knockbacks . | . . . Impact . | . . . Kinetic . | . . . Secondary . | . . . Self-Inflicted Damage . | . . . Shots . | . . . Rammed . | . . . Targets Rammed 1 | 1 . . Kicked . | . . . Crushed 1 | 1 . . Highest Temperature 2 | . . 2 Average Temperature 2 | . . 2 Received Heat Transfer 80 | . . 80 Siege Activations . | . . . Robots Corrupted . | . . . Combat Hostiles . | . . . Parts Fried . | . . . Impact Corruptions . | . . . Robots Melted . | . . . Combat Hostiles . | . . . Parts Melted . | . . . Heat Transferred . | . . . Parts Sabotaged . | . . . Parts Stolen . | . . . Parts Stripped . | . . . Power Chain Reactions . | . . . Alert | -11 -10 -10 ------- Run | Yrd Mat Min Peak Influence 41 | 10 41 35 Initial 15 | . 6 15 Average 21 | 4 25 21 Maximum Alert Level . | . . . Low Security (%) 100 | 100 100 100 Level 1 . | . . . Level 2 . | . . . Level 3 . | . . . Level 4 . | . . . Level 5 . | . . . High Security . | . . . Max Security . | . . . Squads Dispatched 1 | . 1 . Investigation . | . . . Extermination . | . . . Reinforcement 1 | . 1 . Assault . | . . . Garrison . | . . . Intercept . | . . . Searches Triggered . | . . . Construction Impeded . | . . . Haulers Reinforced . | . . . Active Scanning Responses . | . . . Cargo Convoy Interrupts . | . . . Stealth | -11 -10 -10 --------- Run | Yrd Mat Min Distress Signals 1 | . . 1 Communications Jammed . | . . . Distress Signals . | . . . Times Spotted 14 | . 4 10 Peak Tracking Total 5 | . 1 5 Tactical Retreats . | . . . Traps | -11 -10 -10 ------- Run | Yrd Mat Min Traps Triggered . | . . . Indirectly . | . . . Trap Hack Attempts . | . . . Triggered . | . . . Disarmed . | . . . Reprogrammed . | . . . Reused . | . . . Traps Extracted . | . . . Installed . | . . . Triggered . | . . . Machines | -11 -10 -10 ---------- Run | Yrd Mat Min Machines Disabled . | . . . Max in Single Turn . | . . . Machines Repaired . | . . . Machines Dismantled . | . . . Machines Sabotaged . | . . . Overloaded Fab Kills . | . . . Hacking | -11 -10 -10 --------- Run | Yrd Mat Min Machines Accessed 2 | . 2 . Terminals 2 | . 2 . Fabricators . | . . . Repair Stations . | . . . Recycling Units . | . . . Scanalyzers . | . . . Garrison Access . | . . . Total Hacks 7 | . 7 . Successful 1 | . 1 . Failed 5 | . 5 . Catastrophic . | . . . Database Lockouts 1 | . 1 . Manual 8 | . 8 . Terminals 7 | . 7 . Fabricators . | . . . Repair Stations . | . . . Recycling Units . | . . . Scanalyzers . | . . . Garrison Access . | . . . Terminal Hacks 1 | . 1 . Robot Analysis 1 | . 1 . Fabricator Hacks . | . . . Repair Station Hacks . | . . . Recycling Unit Hacks . | . . . Scanalyzer . | . . . Garrison Access Hacks . | . . . Unauthorized Hacks . | . . . Terminals . | . . . Fabricators . | . . . Repair Stations . | . . . Recycling Units . | . . . Scanalyzers . | . . . Garrison Access . | . . . Data Cores Recovered . | . . . Used . | . . . Hacking Detections 2 | . 2 . Full Trace Events 1 | . 1 . Feedback Events . | . . . Feedback Blocked . | . . . Robot Schematics Acquired . | . . . Robots Built . | . . . Authchips . | . . . Time . | . . . Total Robot Build Rating . | . . . Part Schematics Acquired . | . . . Parts Built . | . . . Authchips . | . . . Time . | . . . Total Part Build Rating . | . . . Parts Repaired . | . . . Time . | . . . Parts Recycled . | . . . Recycled Matter . | . . . Retrieved Matter . | . . . Retrieved Components . | . . . Parts Scanalyzed . | . . . Part Schematics Acquired . | . . . Parts Damaged . | . . . Bothacking | -11 -10 -10 ------------ Run | Yrd Mat Min Used RIF Installer . | . . . Robots Hacked . | . . . Non-combat . | . . . Combat . | . . . Robot Hacks Applied . | . . . Relay Couplers Released . | . . . Fabnet Peak Effective % . | . . . Robots Rewired . | . . . Allies Hacked . | . . . Hacks Repelled . | . . . Allies | -11 -10 -10 -------- Run | Yrd Mat Min Total Allies . | . . . Largest Group . | . . . Highest-Rated Group . | . . . Highest-Rated Ally . | . . . Total Orders . | . . . Ally Attacks . | . . . Total Damage . | . . . Kills . | . . . Allies Corrupted . | . . . Allies Melted . | . . . Intel | -11 -10 -10 ------- Run | Yrd Mat Min Robot Analysis Total 1 | . 1 . Derelict Logs Recovered 1 | . . 1 Drone Launches . | . . . Drone Recoveries . | . . . Exploration | -11 -10 -10 ------------- Run | Yrd Mat Min Turns Passed 625 | 88 324 213 Spaces Moved 355 | 56 185 114 Core 22 | 17 . 5 Treads 333 | 39 185 109 Legs . | . . . Wheels . | . . . Hover . | . . . Flight . | . . . Fastest Speed 50 | 50 160 100 Average Speed 153 | 126 160 157 Slowest Speed 160 | 160 160 160 Overloaded Moves . | . . . Propulsion Burnouts . | . . . Robots Hopped . | . . . Cave-ins Triggered . | . . . Exploration Rate (%) 21 | 4 26 33 Regions Visited 2 Branch Regions 1 Pre-discovered Areas . | . . . Known Exits Taken . | . . . Unknown Exits Taken 2 | 1 1 . Scrap Searched . | . . . Spaces Dug . | . . . Terrain Destroyed . | . . . Melee . | . . . Projectile . | . . . AOE . | . . . Terrain Rammed . | . . . Walls Destroyed . | . . . Machines Disabled . | . . . Actions | -11 -10 -10 --------- Run | Yrd Mat Min Total 393 | 70 197 126 Wait . | . . . Move 353 | 55 184 114 Hop . | . . . Pick Up 10 | 6 4 . Fast Attach 2 | 2 . . Attach 5 | 5 . . Detach . | . . . Swap . | . . . Drop . | . . . Fire 22 | 1 9 12 Melee . | . . . Ram . | . . . Kick . | . . . Crush 1 | 1 . . Escape Stasis . | . . . Rewire . | . . . Trap . | . . . Miscellaneous . | . . . Route ------- -11/Scrapyard -10/Materials -10/Mines History --------- Turn | Location | Event 12 | -11/Scrapyard | Discovered new exit (range 16) 89 | -11/Scrapyard | Entered Materials 304 | -10/Materials | Central database locked down 318 | -10/Materials | Build established: Mutant 394 | -10/Materials | Discovered new exit (range 9) 413 | -10/Materials | Entered Mines 419 | -10/Mines | Assembled infested the area 426 | -10/Mines | Learned 2 Materials zone layouts 493 | -10/Mines | Found a hidden stash of uninstalled traps 616 | -10/Mines | Core integrity fell below 50% 621 | -10/Mines | Core integrity fell below 20% 626 | -10/Mines | Destroyed by as-03779 with Assembled Blade Last Messages --------------- 00455_ as-61261 destroyed. 00493_ A stash of uninstalled traps is collected here! 00501_ Acquired 60 matter. 00506_ The unstable cave ceiling collapses. 00553_ as-96092 destroyed. 00559_ Acquired 16 matter. 00600_ Assault Rifle destroyed. 00601_ as-74427 destroyed. 00602_ K-01 Serf collects debris. 00605_ Lgt. Ion Engine destroyed. 00605_ System corrupted by crushing effect (+1). 00608_ K-01 Serf collects debris. 00613_ Lgt. Treads destroyed. 00614_ K-01 Serf collects debris. 00618_ Lgt. Assault Rifle destroyed. 00620_ K-01 Serf collects debris. 00620_ Lgt. Treads destroyed. 00621_ K-01 Serf destroyed. 00622_ as-43194 sneak attacks. Map ----- +----------------------------------------------------+ | ????????????????????????????????? ?# #? | | ?????????????????????????????????? ?# #? | | ??????????????????????????????????## #??# " #? | | ??????????????????????????????????# #### ## | | ??????????????????????????????????# ## | | ??????????????????????????????????# | | ??????????????????????????????????# #### | | ??????????????????????????????????# ####??? | | ??????????????????????????????????# ##?????? | | ???????????????????????????????##### #??????? | | ??????????????????????????????? #?## ##??????? | | ???????????????????????????????# #??## ##???????? | | ???????????????????????????##### #???## #????????? | | ??????????????????????????## ## ###### ##???????? | | ??????????????????????????# % #???????? | | ??????????????????????????# #???????? | | ??????????????????????????# ######### #???????? | | ??????????????????????????# #??????? #???????? | | ?????????????????????????## ##?????? ???????? | | ?????????????????????????# ##?????## ??????? | | ?????????????????????????# ####?????#?????? | | ?????????????????????????## ##??????????? | | ?????????????????????####### ##?????????? | | ??????????????????# ## ## ##????????? | | ??????????????????# % %* #????????? | | ????????????????????# #a @a a #???????? | | ??????????????????????#% ### #???????? | | ????????????????????# #?## #???????? | | ????????????????????# #??#### #???????? | | ????????????????????## ###??????#### ##???????? | | ????????????????????# ?????????????####????????? | | ????????????????????# ?????????????????????????? | | ????????????????????## ??????????????????????????? | | ?????????????????????# ??????????????????????????? | | ????????????????????? ??????????????????????????? | | ????????????????????? ???????????????????????????? | | ????????????????????# ???????????????????????????? | | ????????????????????#????????????????????????????? | | ?????????????????????????????????????????????????? | | ?????????????????????????????????????????????????? | | ?????????????????????????????????????????????????? | | ?????????????????????????????????????????????????? | | ?????????????????????????????????????????????????? | | ?????????????????????????????????????????????????? | | ?????????????????????????????????????????????????? | | ?????????????????????????????????????????????????? | | ?????????????????????????????????????????????????? | | ?????????????????????????????????????????????????? | | ?????????????????????????????????????????????????? | | ?????????????????????????????????????????????????? | +----------------------------------------------------+ Best States ------------- Heat Dissipation 25 Energy Generation 10 Energy Capacity 125 Matter Stores 300 Matter Capacity 300 Sight Range 16 Terrain Scan Density 10 Evasion (%) 50 Recoil Reduction 2 Item Schematics ----------------- None Robot Schematics ------------------ None Fabricated ------------ Nothing Alien Tech Used ----------------- None Achievements -------------- None Challenges ------------ None Game ------ Seed BehemothCompanionBank Manual? 0 Play Time 00:08:11 Cumulative 22.8 hours Start 2024.08.28 @ 19:54:36 End 2024.08.28 @ 20:01:16 Sessions 1 Manual Loads 0 Difficulty Rogue Special Mode None Game No. 54 Rogue 54 Adventurer 0 Explorer 0 Win Type - Total 0 Types 0/0/0/0/0/0/0/0/0 Lore% 16 Gallery% 22 Achievement% 23 Wizard Run 0 Options --------- Layout 1 ASCII 0 Keyboard 0 Movement Mouse Keybinds 0 Fullscreen 2 Font 24/Smallcaps Map View 50x35 Zoom Use 0% Tactical HUD 1 Map Filters NONE Filters NONE Steam 1 RUN: 2498cd4c-3709-4f84-9676-94e2530409ff